bitfinex-derivatives/quotes_BNBF0:USTF0_20250401
["timestamp","ask_amount","ask_price","bid_price","bid_amount"]
[1743492324436,0.30172148,609.68,608.29,2.49179054]
[1743492324641,0.30172148,609.67,608.29,2.49179054]
[1743492324841,0.28575417,609.68,608.29,2.49179054]
[1743492325033,0.30172148,609.67,608.29,2.49179054]
[1743492325237,0.30172713,609.66,608.29,2.49179054]
[1743492325437,0.30172713,609.65,608.29,2.49179054]
[1743492325634,0.30172713,609.64,608.29,2.49179054]
[1743492325838,0.30172713,609.67,608.29,2.49179054]
[1743492326138,0.30172713,609.66,608.29,2.49179054]
[1743492326435,0.30172713,609.65,608.29,2.49179054]
[1743492326638,0.30172713,609.67,608.29,2.49179054]
[1743492326841,0.3017277,609.66,608.29,2.49179054]
[1743492327043,0.3017277,609.65,608.29,2.49179054]
[1743492327240,0.28576356,609.66,608.29,2.49179054]
[1743492327438,0.3017277,609.65,608.29,2.49179054]
[1743492328446,0.30175106,609.64,608.29,2.49179054]
[1743492328636,0.30175106,609.65,608.29,2.49179054]
[1743492328837,0.30175106,609.64,608.29,2.49179054]
[1743492329037,0.30175106,609.63,608.29,2.49179054]
[1743492329240,0.30175106,609.65,608.29,2.49179054]
[1743492329439,0.30175106,609.64,608.29,2.49179054]
[1743492329643,0.30175106,609.65,608.29,2.49179054]
[1743492329845,0.30175106,609.64,608.29,2.49179054]
[1743492330144,0.30175106,609.63,608.29,2.49179054]
[1743492331138,0.30175106,609.63,608.29,1.72979054]
[1743492333045,0.32799252,609.77,608.29,1.72979054]
[1743492333245,0.28579406,609.62,608.29,1.72979054]
[1743492333546,0.3017921,609.61,608.29,1.72979054]
[1743492333747,0.28577998,609.61,608.29,1.72979054]
[1743492334047,0.3017921,609.6,608.29,2.49179054]
[1743492334649,0.28577998,609.61,608.29,2.49179054]
[1743492334846,0.30179058,609.6,608.29,2.49179054]
[1743492336249,0.58758816,609.59,608.29,2.49179054]
[1743492336547,0.30179058,609.58,608.29,2.49179054]
[1743492337443,0.30179058,609.58,608.29,2.163]
[1743492337847,0.28579758,609.59,608.29,2.163]
[1743492338048,0.30180152,609.58,608.29,2.163]
[1743492340950,0.28579758,609.59,608.29,2.163]
[1743492341249,0.30182175,609.58,608.29,2.163]
[1743492342053,0.30182175,609.73,608.29,2.163]
[1743492342351,0.28582575,609.57,608.29,2.163]
[1743492342554,0.30182175,609.56,608.29,2.163]
[1743492342743,0.30182175,609.73,608.29,2.163]
[1743492342946,0.30182175,609.72,608.29,2.163]
[1743492343251,0.30182175,609.71,608.29,2.163]
[1743492343453,2.50883066,609.74,608.29,2.163]
[1743492343454,0.30182175,609.7,608.29,2.163]
[1743492343647,0.30182175,609.69,608.29,2.163]
[1743492343853,0.30182175,609.68,608.29,2.163]
[1743492344051,0.30182175,609.67,608.29,2.163]
[1743492344252,0.30181885,609.66,608.29,2.163]
[1743492344449,0.30181885,609.65,608.29,2.163]
[1743492344754,0.30181885,609.64,608.29,2.163]
[1743492344949,0.30181885,609.63,608.29,2.163]
[1743492345149,0.30181885,609.73,608.29,2.163]
[1743492345348,0.28580815,609.62,608.29,2.163]
[1743492345557,0.30181885,609.61,608.29,2.163]
[1743492346050,0.28582223,609.6,608.29,2.163]
[1743492346456,0.30181885,609.59,608.29,2.163]
[1743492346650,0.30181885,609.58,608.29,2.163]
[1743492346956,0.30181885,609.57,608.29,2.163]
[1743492347151,0.30185698,609.56,608.29,2.163]
[1743492347453,0.30185698,609.55,608.29,2.163]
[1743492347657,0.30185698,609.54,608.29,2.163]
[1743492347850,0.30185698,609.53,608.29,2.163]
[1743492348055,0.30185698,609.58,608.29,2.163]
[1743492348253,0.28583749,609.53,608.29,2.163]
[1743492348453,0.30185698,609.52,608.29,2.163]
[1743492349155,0.30185857,609.51,608.29,2.163]
[1743492349351,0.28583749,609.53,608.29,2.163]
[1743492349352,0.30185857,609.5,608.29,2.163]
[1743492349552,0.30185857,609.49,608.29,2.163]
[1743492349754,0.30185857,609.52,608.29,2.163]
[1743492349954,0.30185857,609.51,608.29,2.163]
[1743492350158,0.30185857,609.5,608.29,2.163]
[1743492350459,0.30185857,609.49,608.29,2.163]
[1743492350659,0.30185882,609.48,608.29,2.163]
[1743492350862,0.30185882,609.52,608.29,2.163]
[1743492351056,0.30185882,609.51,608.29,2.163]
[1743492351257,0.28585628,609.47,608.29,2.163]
[1743492351462,0.30185882,609.46,608.29,2.163]
[1743492352267,0.28585628,609.47,608.29,2.163]
[1743492352268,0.30185761,609.45,608.29,2.163]
[1743492352466,0.30185761,609.46,608.29,2.163]
[1743492352767,0.30185761,609.45,608.29,2.163]
[1743492352965,0.30185761,609.44,608.29,2.163]
[1743492353169,0.30185761,609.43,608.29,2.163]
[1743492353466,0.30185761,609.42,608.29,2.163]
[1743492353665,0.30185761,609.46,608.29,2.163]
[1743492353868,0.30185761,609.45,608.29,2.163]
[1743492354069,0.30185761,609.66,608.29,2.163]
[1743492354369,0.28586332,609.45,608.29,2.163]
[1743492354567,0.30185761,609.44,608.29,2.163]
[1743492354869,0.30185761,609.43,608.29,2.163]
[1743492357168,0.28586684,609.42,608.29,2.163]
[1743492357568,0.30185761,609.41,608.29,2.163]
[1743492358772,0.30186387,609.4,608.29,2.163]
[1743492358965,0.28586684,609.42,608.29,2.163]
[1743492358966,0.30186387,609.41,608.29,2.163]
[1743492359170,0.30186387,609.4,608.29,2.163]
[1743492359370,0.30186387,609.41,608.29,2.163]
[1743492359571,0.30186387,609.4,608.29,2.163]
[1743492359765,0.30186387,609.41,608.29,2.163]
[1743492359969,0.30186387,609.4,608.29,2.163]
[1743492360169,0.30186387,609.39,608.29,2.163]
[1743492360669,0.30186387,609.38,608.29,2.163]
[1743492360871,0.30186387,609.41,608.29,2.163]
[1743492361065,0.30186387,609.4,608.29,2.163]
[1743492361272,0.30186387,609.41,608.29,2.163]
[1743492361572,0.30186387,609.4,608.29,2.163]
[1743492361772,0.30186387,609.41,608.29,2.163]
[1743492361973,0.30186387,609.4,608.29,2.163]
[1743492362173,0.28586684,609.42,608.29,2.163]
[1743492362174,0.30186387,609.39,608.29,2.163]
[1743492362374,0.28586684,609.42,608.29,2.163]
[1743492362375,0.30186387,609.38,608.29,2.163]
[1743492362574,0.30186387,609.41,608.29,2.163]
[1743492362771,0.30186387,609.4,608.29,2.163]
[1743492363078,0.30186387,609.39,608.29,2.163]
[1743492363377,0.30186387,609.38,608.29,2.163]
[1743492363575,0.30186387,609.41,608.29,2.163]
[1743492363774,0.30186387,609.4,608.29,2.163]
[1743492363978,0.28586684,609.42,608.29,2.163]
[1743492364376,0.30189772,609.41,608.29,2.163]
[1743492364671,0.30189647,609.4,608.29,2.163]
[1743492364879,0.30189647,609.39,608.29,2.163]
[1743492365177,0.28586684,609.42,608.29,2.163]
[1743492365380,0.3018985,609.41,608.29,2.163]
[1743492366173,0.28588563,609.4,608.29,2.163]
[1743492368977,2.50883066,610.03,608.29,2.163]
[1743492369176,0.28581402,609.39,608.29,2.163]
[1743492369576,2.50883066,610.03,608.29,2.163]
[1743492369773,0.28581402,609.38,608.29,2.163]
[1743492370174,2.50883066,610.04,608.29,2.163]
[1743492370479,0.28581284,609.37,608.29,2.163]
[1743492370680,2.50883066,610.04,608.29,2.163]
[1743492370877,0.30189841,610.03,608.29,2.163]
[1743492371077,0.28581402,609.36,608.29,2.163]
[1743492371277,2.50883066,610.01,608.29,2.163]
[1743492371477,0.30189841,610.0,608.29,2.163]
[1743492371676,0.28581636,609.35,608.29,2.163]
[1743492371877,2.50883066,610.01,608.29,2.163]
[1743492372179,0.28581754,609.34,608.29,2.163]
[1743492372575,0.30189686,609.33,608.29,2.163]
[1743492372779,0.30189685,609.32,608.29,2.163]
[1743492377681,0.30189123,609.31,608.29,2.163]
[1743492377983,0.30189123,609.3,608.29,2.163]
[1743492378177,0.2858962,609.3,608.29,2.163]
[1743492380985,2.50883066,609.85,608.29,2.163]
[1743492381185,0.28582106,609.29,608.29,2.163]
[1743492381486,0.32796025,609.83,608.29,2.163]
[1743492381686,0.30188032,609.82,608.29,2.163]
[1743492381888,0.28582341,609.28,608.29,2.163]
[1743492382288,0.32797638,609.8,608.29,2.163]
[1743492382487,0.28582693,609.27,608.29,2.163]
[1743492382987,0.32797638,609.8,608.29,2.163]
[1743492383181,0.28582693,609.26,608.29,2.163]
[1743492383386,0.32797638,609.8,608.29,2.163]
[1743492383587,0.30188511,609.79,608.29,2.163]
[1743492383788,0.2858281,609.25,608.29,2.163]
[1743492383989,0.32799252,609.77,608.29,2.163]
[1743492384188,0.30188538,609.76,608.29,2.163]
[1743492384488,0.28583045,609.24,608.29,2.163]
[1743492384689,0.32800865,609.74,608.29,2.163]
[1743492384889,0.30188528,609.73,608.29,2.163]
[1743492385100,0.32802479,609.71,608.29,2.163]
[1743492385282,0.30188528,609.7,608.29,2.163]
[1743492385584,0.32804093,609.68,608.29,2.163]
[1743492385889,0.30188273,609.67,608.29,2.163]
[1743492386089,0.32805708,609.65,608.29,2.163]
[1743492386289,0.30188273,609.64,608.29,2.163]
[1743492386487,0.32806784,609.63,608.29,2.163]
[1743492386686,0.30188273,609.62,608.29,2.163]
[1743492386889,0.3280786,609.61,608.29,2.163]
[1743492387088,0.30188273,609.6,608.29,2.163]
[1743492387389,0.62997239,609.59,608.29,2.163]
[1743492387589,0.62997777,609.58,608.29,2.163]
[1743492387889,0.62998315,609.57,608.29,2.163]
[1743492388089,0.62998853,609.56,608.29,2.163]
[1743492388390,0.62999392,609.55,608.29,2.163]
[1743492388582,0.6299993,609.54,608.29,2.163]
[1743492388787,0.32812166,609.53,608.29,2.163]
[1743492388985,0.30188716,609.52,608.29,2.163]
[1743492389290,0.32813243,609.51,608.29,2.163]
[1743492389484,0.30188716,609.5,608.29,2.163]
[1743492389688,0.3281432,609.49,608.29,2.163]
[1743492389885,0.30188716,609.48,608.29,2.163]
[1743492390087,0.32815396,609.47,608.29,2.163]
[1743492390286,0.30188716,609.46,608.29,2.163]
[1743492390490,0.61401728,609.47,608.29,2.163]
[1743492390692,0.30188729,609.46,608.29,2.163]
[1743492390987,0.32816473,609.45,608.29,2.163]
[1743492391194,0.30188729,609.44,608.29,2.163]
[1743492391895,2.50883066,609.42,608.29,2.163]
[1743492392386,0.30188581,609.41,608.29,2.163]
[1743492393296,0.28587154,609.4,608.29,2.163]
[1743492393597,0.30188581,609.39,608.29,2.163]
[1743492396291,0.30188581,609.44,608.29,2.163]
[1743492396596,0.28587389,609.38,608.29,2.163]
[1743492396895,0.30188581,609.37,608.29,2.163]
[1743492398599,0.30189403,609.36,608.29,2.163]
[1743492398798,0.30189403,609.35,608.29,2.163]
[1743492399001,0.30189403,609.34,608.29,2.163]
[1743492399191,0.30189403,609.44,608.29,2.163]
[1743492399392,0.28587624,609.34,608.29,2.163]
[1743492399696,0.30189403,609.33,608.29,2.163]
[1743492399895,0.30189403,609.32,608.29,2.163]
[1743492400093,0.28587036,609.33,608.29,2.163]
[1743492400395,0.30189604,609.32,608.29,2.163]
[1743492401701,0.28587036,609.33,608.29,2.163]
[1743492402005,0.30189382,609.32,608.29,2.163]
[1743492402199,0.28586919,609.32,608.29,2.163]
[1743492402502,0.30189382,609.31,608.29,2.163]
[1743492408005,2.50883066,609.33,608.29,2.163]
[1743492408206,0.30189501,609.3,608.29,2.163]
[1743492408407,0.30189501,609.29,608.29,2.163]
[1743492408603,0.58777712,609.32,608.29,2.163]
[1743492408905,0.30189501,609.31,608.29,2.163]
[1743492411211,2.50883066,609.29,608.29,2.163]
[1743492411411,0.30189501,609.28,608.29,2.163]
[1743492412012,2.50883066,609.29,608.29,2.163]
[1743492413212,0.28588328,609.3,608.29,2.163]
[1743492414010,0.32816473,609.45,608.29,2.163]
[1743492414212,0.28586802,609.29,608.29,2.163]
[1743492414609,0.32816473,609.45,608.29,2.163]
[1743492414814,0.28586919,609.28,608.29,2.163]
[1743492415213,0.32816473,609.45,608.29,2.163]
[1743492415416,0.28586919,609.27,608.29,2.163]
[1743492415825,0.32816473,609.45,608.29,2.163]
[1743492416018,0.28586919,609.26,608.29,2.163]
[1743492416418,0.32816473,609.45,608.29,2.163]
[1743492416619,0.28586919,609.25,608.29,2.163]
[1743492417020,0.32816473,609.45,608.29,2.163]
[1743492417214,0.28586802,609.24,608.29,2.163]
[1743492417617,0.32816473,609.45,608.29,2.163]
[1743492417814,0.28586802,609.23,608.29,2.163]
[1743492418218,0.32816473,609.45,608.29,2.163]
[1743492418419,0.28586802,609.22,608.29,2.163]
[1743492418816,0.32816473,609.45,608.29,2.163]
[1743492419021,0.28586802,609.21,608.29,2.163]
[1743492419422,0.32816473,609.45,608.29,2.163]
[1743492419718,0.28586802,609.2,608.29,2.163]
[1743492419920,0.32816473,609.45,608.29,2.163]
[1743492420117,0.30189418,609.44,608.29,2.163]
[1743492420321,0.28586919,609.19,608.29,2.163]
[1743492420523,0.30189418,609.44,608.29,2.163]
[1743492420725,0.32816473,609.45,608.29,2.163]
[1743492421023,0.30189428,609.44,608.29,2.163]
[1743492421423,0.58772473,609.44,608.29,2.163]
[1743492421623,0.30189428,609.43,608.29,2.163]
[1743492421818,0.30189041,609.42,608.29,2.163]
[1743492422018,0.30189041,609.41,608.29,2.163]
[1743492422220,0.30189041,609.4,608.29,2.163]
[1743492422418,0.30189041,609.39,608.29,2.163]
[1743492422620,0.30189041,609.38,608.29,2.163]
[1743492422819,0.30189041,609.43,608.29,2.163]
[1743492423022,0.30189041,609.42,608.29,2.163]
[1743492423218,0.28586919,609.37,608.29,2.163]
[1743492423422,0.30189041,609.36,608.29,2.163]
[1743492426218,0.30189041,609.44,608.29,2.163]
[1743492426424,0.28587741,609.35,608.29,2.163]
[1743492426724,0.3018889,609.34,608.29,2.163]
[1743492429221,0.3018889,609.44,608.29,2.163]
[1743492429421,0.28587976,609.33,608.29,2.163]
[1743492429625,0.30188909,609.32,608.29,2.163]
[1743492429926,0.30188909,609.31,608.29,2.163]
[1743492431030,0.28587036,609.32,608.29,2.163]
[1743492431230,0.30188896,609.31,608.29,2.163]
[1743492432129,0.30188896,609.44,608.29,2.163]
[1743492432331,0.28588328,609.3,608.29,2.163]
[1743492432631,0.32816473,609.45,608.29,2.163]
[1743492432925,0.28587036,609.29,608.29,2.163]
[1743492433130,0.30188856,609.28,608.29,2.163]
[1743492433337,0.30188856,609.44,608.29,2.163]
[1743492433524,0.28586919,609.28,608.29,2.163]
[1743492433724,0.30188856,609.27,608.29,2.163]
[1743492433928,0.30188856,609.26,608.29,2.163]
[1743492434128,2.50883066,609.41,608.29,2.163]
[1743492434129,0.30188856,609.25,608.29,2.163]
[1743492434426,0.28587036,609.27,608.29,2.163]
[1743492435025,2.50883066,609.41,608.29,2.163]
[1743492435229,0.28587271,609.26,608.29,2.163]
[1743492435630,0.32816473,609.45,608.29,2.163]
[1743492435930,0.28587271,609.25,608.29,2.163]
[1743492436131,0.32816473,609.45,608.29,2.163]
[1743492436430,0.28586919,609.24,608.29,2.163]
[1743492436830,0.32816473,609.45,608.29,2.163]
[1743492437031,0.28586919,609.23,608.29,2.163]
[1743492437531,0.32816473,609.45,608.29,2.163]
[1743492437733,0.28586802,609.22,608.29,2.163]
[1743492437936,0.32816473,609.45,608.29,2.163]
[1743492438135,0.30188635,609.44,608.29,2.163]
[1743492438335,0.28586919,609.21,608.29,2.163]
[1743492438536,0.32816473,609.45,608.29,2.163]
[1743492438733,0.30188629,609.44,608.29,2.163]
[1743492438932,0.28586919,609.2,608.29,2.163]
[1743492439128,0.32816473,609.45,608.29,2.163]
[1743492439329,0.30188937,609.44,608.29,2.163]
[1743492439634,0.28586802,609.19,608.29,2.163]
[1743492439830,0.32816473,609.45,608.29,2.163]
[1743492440030,0.28586802,609.43,608.29,2.163]
[1743492440235,0.30188662,609.42,608.29,2.163]
[1743492441238,0.28587036,609.41,608.29,2.163]
[1743492443833,0.32816473,609.45,608.29,2.163]
[1743492444033,0.30188609,609.44,608.29,2.163]
[1743492444237,0.28586802,609.4,608.29,2.163]
[1743492446937,0.32816473,609.45,608.29,2.163]
[1743492447339,0.28583984,609.39,608.29,2.163]
[1743492447936,0.28583984,609.39,608.3,0.32878513]
[1743492449943,0.32816473,609.45,608.3,0.32878513]
[1743492450140,0.30179172,609.44,608.3,0.32878513]
[1743492450342,0.28598783,609.38,608.3,0.32878513]
[1743492450539,0.30179172,609.37,608.3,0.32878513]
[1743492451545,0.28598783,609.38,608.3,0.84678513]
[1743492451739,0.30179139,609.37,608.3,1.73078513]
[1743492453149,0.30179139,609.44,608.3,1.73078513]
[1743492453344,0.28583045,609.36,608.3,1.73078513]
[1743492453548,0.32816473,609.45,608.3,1.73078513]
[1743492453744,0.30179145,609.44,608.3,1.73078513]
[1743492454046,0.28582458,609.35,608.3,1.73078513]
[1743492454340,0.32816473,609.45,608.3,1.73078513]
[1743492454546,0.28582341,609.34,608.3,1.73078513]
[1743492454739,0.32816473,609.45,608.3,1.73078513]
[1743492454945,0.30179145,609.44,608.3,1.73078513]
[1743492455246,0.28582341,609.33,608.3,1.73078513]
[1743492455439,0.32816473,609.45,608.3,1.73078513]
[1743492455643,0.28582341,609.32,608.3,1.73078513]
[1743492456044,0.32816473,609.45,608.3,1.73078513]
[1743492456244,0.28582223,609.31,608.3,1.73078513]
[1743492456646,0.32816473,609.45,608.3,1.73078513]
[1743492456844,0.28582223,609.3,608.3,1.73078513]
[1743492457246,0.32816473,609.45,608.3,1.73078513]
[1743492457447,0.28582223,609.29,608.3,1.73078513]
[1743492457844,0.32816473,609.45,608.3,1.73078513]
[1743492458151,0.28582223,609.28,608.3,1.73078513]
[1743492458347,0.32816473,609.45,608.3,1.73078513]
[1743492458650,0.28582341,609.27,608.3,1.73078513]
[1743492458949,0.32816473,609.45,608.3,1.73078513]
[1743492459249,0.28582341,609.26,608.3,1.73078513]
[1743492459643,0.32816473,609.45,608.3,1.73078513]
[1743492459848,0.28582341,609.25,608.3,1.73078513]
[1743492460348,0.32816473,609.45,608.3,1.73078513]
[1743492460548,0.28582223,609.24,608.3,1.73078513]
[1743492460750,0.32816473,609.45,608.3,1.73078513]
[1743492460950,0.30178695,609.44,608.3,1.73078513]
[1743492461250,0.28582341,609.23,608.3,1.73078513]
[1743492461445,0.32816473,609.45,608.3,1.73078513]
[1743492461650,0.28580463,609.22,608.3,1.73078513]
[1743492461951,0.32816473,609.45,608.3,1.73078513]
[1743492462444,0.28580345,609.21,608.3,1.73078513]
[1743492462650,0.32816473,609.45,608.3,1.73078513]
[1743492462847,0.28580345,609.2,608.3,1.73078513]
[1743492463252,0.32816473,609.45,608.3,1.73078513]
[1743492463458,0.28580345,609.19,608.3,1.73078513]
[1743492463849,0.32816473,609.45,608.3,1.73078513]
[1743492464051,0.28580345,609.18,608.3,1.73078513]
[1743492464453,0.32816473,609.45,608.3,1.73078513]
[1743492464755,0.28580345,609.17,608.3,1.73078513]
[1743492464952,0.32816473,609.45,608.3,1.73078513]
[1743492465355,0.28580345,609.16,608.3,1.73078513]
[1743492465755,0.32816473,609.45,608.3,1.73078513]
[1743492466050,0.28580345,609.15,608.3,1.73078513]
[1743492466255,0.32816473,609.45,608.3,1.73078513]
[1743492466558,0.28580463,609.14,608.3,1.73078513]
[1743492466958,0.32816473,609.45,608.3,1.73078513]
[1743492467158,0.28580111,609.13,608.3,1.73078513]
[1743492467557,0.32816473,609.45,608.3,1.73078513]
[1743492467860,0.28580111,609.12,608.3,1.73078513]
[1743492468063,0.32816473,609.45,608.3,1.73078513]
[1743492468562,0.28580111,609.11,608.3,1.73078513]
[1743492468755,0.32816473,609.45,608.3,1.73078513]
[1743492468955,0.30175644,609.44,608.3,1.73078513]
[1743492469158,0.32816473,609.45,608.3,1.73078513]
[1743492469660,0.28574713,609.44,608.3,1.73078513]
[1743492470961,0.32816473,609.45,608.3,1.73078513]
[1743492471162,0.28580111,609.43,608.3,1.73078513]
[1743492471457,0.30174181,609.42,608.3,1.73078513]
[1743492474160,0.30174181,609.44,608.3,1.73078513]
[1743492474362,0.28580111,609.41,608.3,1.73078513]
[1743492474563,0.30174181,609.4,608.3,2.49278513]
[1743492475062,0.28580111,609.41,608.3,2.49278513]
[1743492477066,0.32816473,609.45,608.3,2.49278513]
[1743492477367,0.28580111,609.4,608.3,2.49278513]
[1743492484470,0.28580111,609.4,608.3,2.164]
[1743492486063,2.50883066,610.11,608.3,2.164]
[1743492486469,0.28572367,609.39,608.3,2.164]
[1743492486969,2.50883066,610.06,608.3,2.164]
[1743492487168,0.28572953,609.38,608.3,2.164]
[1743492487371,2.50883066,610.06,608.3,2.164]
[1743492487566,0.30173969,610.05,608.3,2.164]
[1743492487765,0.28573071,609.37,608.3,2.164]
[1743492487965,2.50883066,610.07,608.3,2.164]
[1743492488165,0.3017396,610.06,608.3,2.164]
[1743492488371,0.28573071,609.36,608.3,2.164]
[1743492488670,2.50883066,610.07,608.3,2.164]
[1743492488870,0.30173717,610.06,608.3,2.164]
[1743492489171,0.28571546,609.35,608.3,2.164]
[1743492489371,2.50883066,610.07,608.3,2.164]
[1743492489670,0.30167086,610.06,608.3,2.164]
[1743492489867,0.28569904,609.34,608.3,2.164]
[1743492490068,2.50883066,610.28,608.3,2.164]
[1743492490269,0.30166011,610.27,608.3,2.164]
[1743492490468,0.28569552,609.33,608.3,2.164]
[1743492490666,2.50883066,610.28,608.3,2.164]
[1743492490870,0.30165817,610.27,608.3,2.164]
[1743492491071,0.2856709,609.32,608.3,2.164]
[1743492491270,2.50883066,610.34,608.3,2.164]
[1743492491470,0.30165629,610.33,608.3,2.164]
[1743492491665,0.28566621,609.31,608.3,2.164]
[1743492492171,0.28566034,609.3,608.3,2.164]
[1743492500977,2.50883066,610.18,608.3,2.164]
[1743492501180,0.28563572,609.31,608.3,2.164]
[1743492501684,2.50883066,610.29,608.3,2.164]
[1743492501884,0.28562283,609.31,608.3,2.164]
[1743492502185,2.50883066,610.29,608.3,2.164]
[1743492502485,0.285624,609.31,608.3,2.164]
[1743492502886,2.50883066,610.29,608.3,2.164]
[1743492503087,0.28562283,609.31,608.3,2.164]
[1743492503380,2.50883066,610.33,608.3,2.164]
[1743492503589,0.30157946,610.32,608.3,2.164]
[1743492503780,0.285624,609.31,608.3,2.164]
[1743492503984,2.50883066,610.33,608.3,2.164]
[1743492504286,0.28562049,609.31,608.3,2.164]
[1743492504594,2.50883066,610.33,608.3,2.164]
[1743492504788,0.30156974,610.32,608.3,2.164]
[1743492504988,0.28561931,609.31,608.3,2.164]
[1743492505184,2.50883066,610.36,608.3,2.164]
[1743492505382,0.30158036,610.35,608.3,2.164]
[1743492505687,0.28562049,609.31,608.3,2.164]
[1743492505883,2.50883066,610.36,608.3,2.164]
[1743492506087,0.28561697,609.31,608.3,2.164]
[1743492506484,2.50883066,610.43,608.3,2.164]
[1743492506683,0.2856158,609.31,608.3,2.164]
[1743492506989,2.50883066,610.43,608.3,2.164]
[1743492507190,0.30158044,610.42,608.3,2.164]
[1743492507389,0.30158044,610.41,608.3,2.164]
[1743492507590,0.30158044,610.4,608.3,2.164]
[1743492507785,0.30158044,610.39,608.3,2.164]
[1743492508090,0.30158044,610.38,608.3,2.164]
[1743492508291,0.30158044,610.37,608.3,2.164]
[1743492508591,0.32768083,610.35,608.32,0.32877432]
[1743492508791,0.30158087,610.34,608.32,0.32877432]
[1743492509090,0.32769694,610.32,608.32,0.32877432]
[1743492509285,0.30158087,610.31,608.32,0.32877432]
[1743492509485,0.30158087,610.3,608.32,0.32877432]
[1743492509792,0.62929392,610.29,608.32,0.32877432]
[1743492509992,0.32772379,610.27,608.32,0.32877432]
[1743492510289,0.30158051,610.26,608.32,0.32877432]
[1743492510491,0.30158051,610.25,608.32,0.32877432]
[1743492510685,0.30158051,610.24,608.32,0.32877432]
[1743492510886,0.30158051,610.23,608.32,0.32877432]
[1743492511087,0.62933115,610.22,608.32,0.32877432]
[1743492511391,0.62933652,610.21,608.32,0.32877432]
[1743492511587,0.62934189,610.2,608.33,0.762]
[1743492511785,0.3015798,610.19,608.35,0.32875811]
[1743492511987,0.3015798,610.18,608.35,0.32875811]
[1743492512191,0.6293573,610.17,608.36,0.518]
[1743492512386,0.62936267,610.16,608.38,0.3287419]
[1743492512590,0.62936804,610.15,608.38,0.3287419]
[1743492512788,0.62937342,610.14,608.38,0.3287419]
[1743492512984,0.62937879,610.13,608.38,0.3287419]
[1743492513188,0.3015798,610.12,608.38,0.3287419]
[1743492513391,0.32780973,610.11,608.38,0.3287419]
[1743492513687,0.3015798,610.1,608.38,0.3287419]
[1743492513893,0.32782048,610.09,608.38,0.3287419]
[1743492514090,0.3015798,610.08,608.38,0.3287419]
[1743492516591,0.28563924,610.07,608.38,0.3287419]
[1743492516794,0.3015798,610.06,608.38,0.3287419]
[1743492518193,0.30158439,610.05,608.38,0.3287419]
[1743492518394,0.30158439,610.04,608.38,0.3287419]
[1743492518594,0.30158439,610.03,608.38,0.3287419]
[1743492518892,0.30158439,610.02,608.38,0.3287419]
[1743492519197,0.30158439,610.01,608.38,0.3287419]
[1743492520091,0.28564159,610.02,608.38,0.3287419]
[1743492521994,0.32782048,610.09,608.38,0.3287419]
[1743492522200,0.28562283,610.01,608.38,0.3287419]
[1743492522591,0.32782048,610.09,608.38,0.3287419]
[1743492522794,0.285624,610.0,608.38,0.3287419]
[1743492523198,0.32782048,610.09,608.38,0.3287419]
[1743492523397,0.285624,609.99,608.38,0.3287419]
[1743492523799,0.32782048,610.09,608.38,0.3287419]
[1743492524000,0.285624,609.98,608.38,0.3287419]
[1743492524497,0.32782048,610.09,608.38,0.3287419]
[1743492524703,0.28562283,609.97,608.38,0.3287419]
[1743492525203,0.32782048,610.09,608.38,0.3287419]
[1743492525399,0.285624,609.96,608.38,0.3287419]
[1743492525598,0.30154172,610.08,608.38,0.3287419]
[1743492525804,0.32782048,610.09,608.38,0.3287419]
[1743492526002,0.285624,609.95,608.38,0.3287419]
[1743492526498,0.32782048,610.09,608.38,0.3287419]
[1743492526704,0.28563924,609.94,608.38,0.3287419]
[1743492527098,0.301546,609.93,608.38,0.3287419]
[1743492527299,0.301546,609.92,608.38,0.3287419]
[1743492527506,0.28563924,609.93,608.38,0.3287419]
[1743492527705,0.30158185,609.92,608.38,0.3287419]
[1743492528109,0.30158185,609.91,608.38,0.3287419]
[1743492528309,0.285658,609.91,608.38,0.3287419]
[1743492528504,0.30158185,609.9,608.38,0.3287419]
[1743492531205,0.30158185,609.89,608.38,0.3287419]
[1743492531511,0.30158185,609.88,608.38,0.3287419]